bitfinex-derivatives/quotes_BNBF0:USTF0_20251203
["timestamp","ask_amount","ask_price","bid_price","bid_amount"]
[1764788304260,0.19272091,903.49,902.0,1.1070582]
[1764788305261,0.19272091,903.49,901.83,1.65894078]
[1764788305262,0.19272091,903.49,902.01,1.1070582]
[1764788305462,0.19272091,903.49,902.0,1.1070582]
[1764788305957,0.19272091,903.49,901.97,1.1070582]
[1764788306358,0.19272091,903.49,901.98,1.1070582]
[1764788307262,0.19272091,903.49,902.0,1.1070582]
[1764788307462,0.19272091,903.49,901.99,1.1070582]
[1764788308159,1.27988162,903.49,902.01,1.1070582]
[1764788308363,1.27988162,903.49,902.0,1.1070582]
[1764788309263,1.08716071,903.47,902.02,1.1070582]
[1764788309465,1.08716071,903.48,902.02,1.1070582]
[1764788310266,1.27988162,903.49,902.06,1.1070582]
[1764788311363,1.08716071,903.57,902.15,1.1070582]
[1764788311664,1.08716071,903.6,902.34,0.82532217]
[1764788312261,1.08716071,903.59,902.35,0.82532217]
[1764788312465,1.08716071,903.6,902.34,0.82532217]
[1764788313367,1.08716071,903.61,902.33,0.82532217]
[1764788314260,1.08716071,903.6,902.34,0.82532217]
[1764788314461,1.08716071,903.61,902.33,0.82532217]
[1764788315266,1.08716071,903.6,902.34,0.82532217]
[1764788315464,1.08716071,903.61,902.33,0.82532217]
[1764788316368,1.08716071,903.58,902.34,1.04]
[1764788319169,1.08716071,903.57,902.34,1.04]
[1764788319364,1.08716071,903.58,902.34,1.04]
[1764788320971,1.08716071,903.59,902.34,1.04]
[1764788321872,1.08716071,903.58,902.34,1.04]
[1764788322568,0.19268996,903.64,902.34,1.04]
[1764788322569,1.08716071,903.6,902.34,1.04]
[1764788323372,1.08716071,903.59,902.34,1.04]
[1764788325373,1.08716071,903.6,902.34,1.04]
[1764788325774,1.08716071,903.59,902.34,1.04]
[1764788325974,1.08716071,903.58,902.34,1.04]
[1764788327369,1.08716071,903.59,902.34,1.04]
[1764788329470,1.08716071,903.54,902.34,1.04]
[1764788331275,0.0130505,904.47,902.49,0.82532217]
[1764788331276,1.08716071,903.8,902.49,0.82532217]
[1764788331474,1.08716071,903.83,902.5,0.82532217]
[1764788331670,1.08716071,903.82,902.49,0.82532217]
[1764788331871,1.08716071,903.73,902.4,0.82532217]
[1764788333274,1.08716071,903.74,902.41,0.82532217]
[1764788333571,1.08716071,903.63,902.34,1.04]
[1764788335273,1.08716071,903.63,902.3,0.82532217]
[1764788335474,1.08716071,903.6,902.27,0.82532217]
[1764788336273,1.08716071,903.6,902.28,0.82532217]
[1764788336773,1.08716071,903.58,902.28,8.36603251]
[1764788337973,1.08716071,903.58,902.29,1.069]
[1764788338370,1.08716071,903.57,902.3,1.425]
[1764788338675,1.63074106,903.73,902.3,1.425]
[1764788338676,1.08716071,903.56,902.3,1.425]
[1764788341071,1.08716071,903.55,902.3,1.425]
[1764788341572,1.08716071,903.51,902.3,1.425]
[1764788341772,1.08716071,903.54,902.3,1.425]
[1764788342573,1.08716071,903.53,902.3,1.425]
[1764788343279,1.08716071,903.52,902.3,1.425]
[1764788343570,1.08716071,903.55,902.32,0.82532217]
[1764788344276,1.08716071,903.54,902.33,0.82532217]
[1764788344474,1.08716071,903.54,902.3,1.425]
[1764788344475,1.08716071,903.51,902.3,2.25032217]
[1764788345376,1.08716071,903.5,902.31,0.82532217]
[1764788346078,1.08716071,903.49,902.3,2.25032217]
[1764788346474,1.08716071,903.47,902.31,0.82532217]
[1764788347376,1.08716071,903.46,902.32,0.82532217]
[1764788348277,1.08716071,903.44,902.33,0.82532217]
[1764788348774,1.63074106,903.61,902.3,1.425]
[1764788348775,1.08716071,903.43,902.32,0.82532217]
[1764788349079,1.08716071,903.41,902.3,2.25032217]
[1764788349278,1.08716071,903.39,902.31,0.82532217]
[1764788350080,1.08716071,903.4,902.32,0.82532217]
[1764788350280,1.08716071,903.39,902.32,0.82532217]
[1764788350481,1.08716071,903.38,902.33,0.82532217]
[1764788351481,1.08716071,903.36,902.35,0.82532217]
[1764788352482,1.08716071,903.35,902.36,0.82532217]
[1764788353281,1.08716071,903.34,902.37,0.82532217]
[1764788355385,1.08716071,903.33,902.38,0.82532217]
[1764788356486,1.08716071,903.32,902.39,0.82532217]
[1764788358284,1.08716071,903.32,902.4,1.062]
[1764788358588,1.08716071,903.31,902.4,1.88732217]
[1764788359388,1.08716071,903.3,902.41,0.82532217]
[1764788360589,1.08716071,903.3,902.42,0.82532217]
[1764788360785,1.08716071,903.29,902.42,0.82532217]
[1764788360989,1.08716071,903.3,902.42,0.82532217]
[1764788361490,1.08716071,903.29,902.42,0.82532217]
[1764788363792,1.08716071,903.29,902.43,1.524]
[1764788373191,1.08716071,903.31,902.44,0.82532217]
[1764788373397,1.08716071,903.34,902.47,0.82532217]
[1764788374292,1.08716071,903.33,902.47,0.82532217]
[1764788381797,1.08716071,903.32,902.47,0.82532217]
[1764788381997,1.08716071,903.33,902.47,0.82532217]
[1764788385305,1.08716071,903.33,902.48,0.82532217]
[1764788388313,1.08716071,903.32,902.48,0.82532217]
[1764788391312,1.08716071,903.32,902.51,0.82532217]
[1764788392414,1.08716071,903.31,902.52,0.82532217]
[1764788393413,1.08716071,903.3,902.53,0.82532217]
[1764788394520,1.08716071,903.29,902.54,0.82532217]
[1764788398719,1.08716071,903.3,902.56,0.82532217]
[1764788400419,1.08716071,903.3,902.43,1.524]
[1764788400420,1.08716071,903.27,902.53,0.82532217]
[1764788400821,1.08716071,903.26,902.52,0.82532217]
[1764788401319,1.08716071,903.17,902.43,2.34932217]
[1764788401616,1.08716071,903.16,902.43,1.524]
[1764788401818,1.08716071,903.07,902.4,1.062]
[1764788402019,0.19265103,903.84,902.4,1.062]
[1764788402020,1.08716071,903.06,902.4,1.062]
[1764788402215,0.19265103,903.84,902.4,1.062]
[1764788402216,1.08716071,902.99,902.4,1.062]
[1764788402418,1.08716071,902.94,902.4,1.062]
[1764788403318,2.75553825,903.75,902.4,1.062]
[1764788403319,1.08716071,902.97,902.4,1.062]
[1764788403622,1.08716071,902.99,902.41,1.586]
[1764788403918,1.08716071,902.98,902.41,1.586]
[1764788404118,1.08716071,902.97,902.41,1.586]
[1764788404419,1.08716071,902.94,902.41,1.586]
[1764788405321,1.08716071,902.96,902.41,1.586]
[1764788405518,1.08716071,902.95,902.41,1.586]
[1764788406016,1.08716071,902.92,902.41,1.586]
[1764788406221,2.75553825,903.73,902.41,1.586]
[1764788406420,1.09889079,903.72,902.41,1.586]
[1764788406617,1.09445929,902.9,902.41,1.586]
[1764788407322,1.09445929,902.92,902.41,1.586]
[1764788407522,1.09445929,902.94,902.41,1.586]
[1764788407719,1.09445929,902.98,902.41,1.586]
[1764788408418,1.09445929,902.99,902.41,1.586]
[1764788409423,1.09445929,903.0,902.41,1.586]
[1764788410120,1.09445929,903.05,902.41,1.586]
[1764788410319,1.09445929,903.06,902.41,1.586]
[1764788411325,1.09445929,903.07,902.41,1.586]
[1764788412626,1.09445929,903.08,902.41,1.586]
[1764788414327,1.09445929,903.09,902.41,1.586]
[1764788415028,1.09445929,903.15,902.41,1.586]
[1764788416427,1.09445929,903.16,902.41,1.586]
[1764788416625,1.09445929,903.16,902.42,1.135]
[1764788420428,1.09445929,903.17,902.42,1.135]
[1764788421530,1.09445929,903.19,902.42,1.135]
[1764788421727,0.19265103,903.84,902.42,1.135]
[1764788421728,1.09445929,903.37,902.42,1.135]
[1764788423426,1.09445929,903.36,902.42,1.135]
[1764788423832,1.09445929,903.33,902.42,1.135]
[1764788425426,1.09445929,903.3,902.42,1.135]
[1764788425632,1.09445929,903.25,902.42,1.135]
[1764788426726,1.09445929,903.27,902.42,1.135]
[1764788427932,1.09445929,903.29,902.42,1.135]
[1764788429132,1.09445929,903.28,902.42,1.135]
[1764788429329,1.09445929,903.29,902.42,1.135]
[1764788430133,1.09445929,903.28,902.42,1.135]
[1764788430333,1.09445929,903.29,902.42,1.135]
[1764788432032,1.09445929,903.29,902.43,1.531]
[1764788432437,1.09445929,903.28,902.43,1.531]
[1764788433338,1.09445929,903.29,902.43,1.531]
[1764788433535,1.09445929,903.27,902.43,1.531]
[1764788433937,1.09445929,903.26,902.43,1.531]
[1764788436439,1.64168893,903.42,902.43,1.531]
[1764788436440,1.09445929,903.25,902.43,1.531]
[1764788436940,1.09445929,903.27,902.43,1.531]
[1764788437340,1.09445929,903.26,902.43,1.531]
[1764788437537,1.09445929,903.27,902.43,1.531]
[1764788438338,1.09445929,903.25,902.43,1.531]
[1764788440138,1.09445929,903.2,902.43,1.531]
[1764788440343,1.09445929,903.07,902.43,1.531]
[1764788440942,1.09445929,903.06,902.43,1.531]
[1764788442245,1.09445929,903.07,902.43,1.531]
[1764788443446,1.09445929,903.08,902.43,1.531]
[1764788444143,1.09445929,903.17,902.43,1.531]
[1764788445148,1.09445929,903.16,902.43,1.531]
[1764788445447,1.09445929,903.15,902.43,1.531]
[1764788445943,1.09445929,903.17,902.43,1.531]
[1764788446348,1.09445929,903.16,902.43,1.531]
[1764788446749,1.09445929,903.19,902.43,1.531]
[1764788447344,1.09445929,903.18,902.43,1.531]
[1764788448149,1.09445929,903.19,902.43,1.531]
[1764788448349,1.09445929,903.18,902.43,1.531]
[1764788449050,1.09445929,903.22,902.43,1.531]
[1764788449450,1.09445929,903.21,902.43,1.531]
[1764788450046,1.09445929,903.24,902.43,1.531]
[1764788450350,1.09445929,903.25,902.43,1.531]
[1764788450748,1.09445929,903.27,902.43,1.531]
[1764788450951,1.09445929,903.29,902.43,1.531]
[1764788453554,1.09445929,903.28,902.43,1.531]
[1764788454055,1.09445929,903.28,902.42,1.135]
[1764788454756,1.09445929,903.28,902.22,0.82691259]
[1764788455256,1.09445929,903.27,902.22,0.82691259]
[1764788456355,1.09445929,903.27,902.23,0.82691259]
[1764788456758,1.09445929,903.28,902.24,0.82691259]
[1764788457057,1.09445929,903.28,902.24,2.24691259]
[1764788457459,1.09445929,903.27,902.25,0.82691259]
[1764788458461,1.09445929,903.27,902.26,0.82691259]
[1764788458861,1.09445929,903.27,902.27,1.576]
[1764788459061,1.09445929,903.37,902.36,0.82691259]
[1764788459360,1.09445929,903.36,902.36,0.82691259]
[1764788461065,1.09445929,903.37,902.36,0.82691259]
[1764788461261,1.09445929,903.36,902.36,0.82691259]
[1764788461461,1.09445929,903.37,902.37,0.82691259]
[1764788462462,1.09445929,903.38,902.37,0.82691259]
[1764788463461,1.09445929,903.39,902.36,0.82691259]
[1764788465364,1.09445929,903.45,902.41,0.82691259]
[1764788466269,1.09445929,903.45,902.4,0.82691259]
[1764788466468,1.09445929,903.49,902.44,0.82691259]
[1764788466965,1.09445929,903.49,902.27,1.576]
[1764788466966,1.09445929,903.5,902.46,0.82691259]
[1764788467169,1.09445929,903.49,902.44,0.82691259]
[1764788469269,1.09445929,903.5,902.43,0.82691259]
[1764788469470,1.09445929,903.49,902.43,0.82691259]
[1764788470269,1.09445929,903.5,902.43,0.82691259]
[1764788471071,1.09445929,903.49,902.42,0.82691259]
[1764788471272,1.09445929,903.5,902.43,0.82691259]
[1764788472572,1.09445929,903.5,902.42,0.82691259]
[1764788472772,1.09445929,903.48,902.4,0.82691259]
[1764788473073,1.09445929,903.44,902.36,0.82691259]
[1764788473274,1.09445929,903.39,902.41,1.503]
[1764788477376,1.09445929,903.45,902.41,1.503]
[1764788482476,1.09445929,903.46,902.41,1.503]
[1764788482977,1.09445929,903.45,902.41,1.503]
[1764788483177,1.09445929,903.46,902.41,1.503]
[1764788485780,1.09445929,903.49,902.41,2.32991259]
[1764788488182,1.09445929,903.49,902.41,0.82691259]
[1764788489577,1.09445929,903.49,902.4,0.82691259]
[1764788491881,1.09445929,903.49,902.41,1.334]
[1764788495780,1.09445929,903.53,902.44,0.82691259]
[1764788495980,1.09445929,903.59,902.5,0.82691259]
[1764788496381,1.09445929,903.63,902.53,0.82691259]
[1764788496580,5.96679108,903.67,902.57,0.82691259]
[1764788496983,5.96679108,903.67,902.6,0.82691259]
[1764788497380,5.96679108,903.67,902.61,0.82691259]
[1764788498285,5.96679108,903.67,902.6,0.82691259]
[1764788498780,2.73614823,904.55,902.63,0.82691259]
[1764788498781,1.09445929,903.76,902.63,0.82691259]
[1764788499281,1.09445929,903.92,902.76,0.82691259]
[1764788500285,1.09445929,903.94,902.74,0.82691259]
[1764788500482,1.09445929,903.94,902.76,0.82691259]
[1764788501282,1.28707673,903.96,902.75,0.82691259]
[1764788501482,1.09445929,903.95,902.76,0.82691259]
[1764788502385,1.09445929,903.95,902.75,0.82691259]
[1764788504281,1.09445929,903.95,902.74,0.82691259]
[1764788505287,0.19261744,903.96,902.73,0.82691259]
[1764788505288,1.28707673,903.96,902.73,0.82691259]
[1764788505487,1.28707673,903.96,902.74,0.82691259]
[1764788505883,1.09445929,903.97,902.75,0.82691259]
[1764788506287,1.09445929,903.98,902.74,0.82691259]
[1764788506488,1.09445929,903.97,902.75,0.82691259]
[1764788507285,1.09445929,903.98,902.74,0.82691259]
[1764788507486,0.1925828,904.07,902.58,1.10429509]
[1764788507487,1.09445929,903.97,902.75,0.82691259]
[1764788507988,1.09445929,903.98,902.75,0.82691259]
[1764788508387,1.09445929,903.98,902.74,0.82691259]
[1764788508593,1.09445929,904.05,902.82,0.82691259]
[1764788509293,1.09445929,904.06,902.81,0.82691259]
[1764788510291,1.28704209,904.07,902.8,0.82691259]
[1764788512197,0.1925828,904.07,902.8,0.82691259]
[1764788512395,0.1925828,904.07,902.79,0.82691259]
[1764788512991,1.28704209,904.07,902.8,1.379]
[1764788513196,1.09445929,903.96,902.8,1.379]
[1764788514195,1.09445929,903.95,902.8,1.379]
[1764788518397,1.09445929,903.94,902.8,1.379]
[1764788518901,1.09445929,903.87,902.8,1.379]
[1764788519101,1.09445929,903.75,902.8,1.379]
[1764788520101,1.09445929,903.74,902.8,1.379]
[1764788521098,1.09445929,903.73,902.8,1.379]
[1764788521602,1.09445929,903.72,902.8,1.379]
[1764788523299,1.09445929,903.71,902.8,1.379]
[1764788528202,1.09445929,903.7,902.8,1.379]
[1764788533308,1.09445929,903.69,902.8,1.379]
[1764788535309,1.09445929,903.68,902.8,1.379]
[1764788536015,1.09445929,903.79,902.8,1.379]
[1764788536208,1.09445929,903.78,902.8,1.379]
[1764788537613,1.09445929,903.81,902.8,1.379]
[1764788538214,1.09445929,903.8,902.8,1.379]
[1764788540215,1.09445929,903.79,902.8,1.379]
[1764788543218,1.09445929,903.71,902.8,1.379]
[1764788543413,1.09445929,903.65,902.8,1.379]
[1764788544220,1.09445929,903.64,902.8,1.379]
[1764788546227,1.09445929,903.63,902.8,1.379]
[1764788548530,1.09445929,903.62,902.8,1.379]
[1764788550233,1.09445929,903.63,902.8,1.379]
[1764788550631,1.09445929,903.63,902.81,0.994]
[1764788550833,1.09445929,903.64,902.81,0.994]
[1764788551329,1.09445929,903.63,902.81,0.994]
[1764788552329,1.09445929,903.62,902.81,0.994]
[1764788554339,1.09445929,903.7,902.81,0.994]
[1764788555334,1.09445929,903.69,902.81,0.994]
[1764788556135,1.09445929,903.7,902.81,0.994]
[1764788556338,1.09445929,903.73,902.81,0.994]
[1764788556739,1.09445929,903.73,902.82,1.09]
[1764788558240,1.09445929,903.71,902.82,1.09]
[1764788562244,1.09445929,903.7,902.82,1.09]
[1764788565643,1.09445929,903.76,902.82,1.09]
[1764788565845,1.09445929,903.77,902.82,1.09]
[1764788568242,1.09445929,903.76,902.82,1.09]
[1764788568440,1.09445929,903.75,902.82,1.09]
[1764788569346,1.09445929,903.74,902.82,1.09]
[1764788569641,1.09445929,903.75,902.82,1.09]
[1764788570242,1.09445929,903.74,902.82,1.09]
[1764788570847,1.09445929,903.75,902.83,0.82691259]
[1764788571342,1.09445929,903.74,902.83,0.82691259]
[1764788571941,1.09445929,903.77,902.86,0.82691259]
[1764788572245,5.89701138,904.03,902.86,0.82691259]
[1764788572246,1.09445929,903.76,902.86,0.82691259]
[1764788572748,1.09445929,903.77,902.87,0.82691259]
[1764788573846,1.09445929,903.77,902.88,0.82691259]
[1764788574449,1.09445929,903.8,902.9,0.82691259]
[1764788576250,1.09445929,903.81,902.9,0.82691259]
[1764788577049,1.09445929,903.8,902.9,0.82691259]
[1764788577249,1.09445929,903.81,902.9,0.82691259]
[1764788578251,1.09445929,903.85,902.93,0.82691259]
[1764788579451,1.09445929,903.77,902.84,0.82691259]
[1764788579647,1.09445929,903.76,902.83,0.82691259]
[1764788580850,1.09445929,903.75,902.82,1.91691259]
[1764788581051,1.09445929,903.68,902.82,1.09]
[1764788581250,1.09445929,903.65,902.82,1.09]
[1764788581554,1.09445929,903.58,902.82,1.09]
[1764788583357,1.09445929,903.57,902.82,1.09]
[1764788585057,1.09445929,903.58,902.82,1.09]
[1764788585759,1.09445929,903.56,902.82,1.09]
[1764788585957,1.09445929,903.56,902.83,0.987]
[1764788590060,1.09445929,903.55,902.83,0.987]
[1764788590261,1.09445929,903.52,902.83,0.987]
[1764788591063,1.09445929,903.48,902.83,0.987]
[1764788591258,1.09445929,903.41,902.83,0.987]
[1764788591461,1.09445929,903.39,902.83,0.987]
[1764788592260,1.09445929,903.4,902.83,0.987]
[1764788592665,1.09445929,903.37,902.83,0.987]
[1764788592864,1.09445929,903.35,902.83,0.987]
[1764788593161,1.09445929,903.36,902.83,0.987]
[1764788594065,5.89701138,904.03,902.83,0.987]
[1764788594066,1.09445929,903.37,902.83,0.987]
[1764788594663,1.09445929,903.36,902.83,0.987]
[1764788594867,1.09445929,903.34,902.83,0.987]
[1764788596162,1.09445929,903.35,902.83,0.987]
[1764788597266,1.09445929,903.36,902.83,0.987]
[1764788597865,1.09445929,903.39,902.83,0.987]
[1764788598664,1.09445929,903.38,902.84,1.046]
[1764788599069,1.09445929,903.39,902.84,1.046]
[1764788600266,1.09445929,903.4,902.84,1.046]
[1764788602270,1.09445929,903.41,902.84,1.046]
[1764788603274,1.09445929,903.42,902.84,1.046]
[1764788603475,1.09445929,903.38,902.84,1.046]
[1764788605176,1.09445929,903.39,902.84,1.046]
[1764788607073,1.09445929,903.4,902.84,1.046]
[1764788607577,1.09445929,903.41,902.84,1.046]
[1764788609180,1.09445929,903.42,902.84,1.046]
[1764788611281,1.09445929,903.43,902.84,1.046]
[1764788613581,1.09445929,903.45,902.84,1.046]
[1764788614282,1.09445929,903.22,902.84,1.046]
[1764788614482,1.09445929,903.12,902.84,1.046]
[1764788614782,1.09445929,902.96,902.84,1.046]
[1764788614978,1.74061234,902.95,902.84,1.046]
[1764788615178,0.64615305,902.94,902.84,1.046]
[1764788615482,0.64615305,902.93,902.84,1.046]
[1764788615778,0.64615305,902.92,902.84,1.046]
[1764788616077,0.64615305,902.91,902.84,1.046]
[1764788616378,0.64615305,902.9,902.84,1.046]
[1764788616578,0.64615305,902.89,902.84,1.046]
[1764788616778,0.64615305,902.88,902.84,1.046]
[1764788616977,0.64615305,902.87,902.84,1.046]
[1764788617177,0.64615305,902.86,902.84,1.046]
[1764788617479,0.64615305,902.85,902.84,1.046]
[1764788624086,0.00977141,903.75,902.84,1.046]
[1764788624087,1.09445929,903.33,902.84,1.046]
[1764788624286,0.64584287,903.32,902.84,1.046]
[1764788624583,0.64584287,903.31,902.84,1.046]
[1764788624787,0.64584287,903.3,902.84,1.046]
[1764788624986,0.64584287,903.29,902.84,1.046]
[1764788625183,0.64584287,903.28,902.84,1.046]
[1764788625386,0.64584287,903.27,902.84,1.046]
[1764788625582,0.64584287,903.26,902.84,1.046]
[1764788625784,0.64584287,903.25,902.84,1.046]
[1764788625983,0.64584287,903.24,902.84,1.046]
[1764788626287,0.64584287,903.23,902.84,1.046]
[1764788626589,0.64584287,903.22,902.84,1.046]
[1764788626887,5.89701138,904.03,902.84,1.046]
[1764788626888,0.64584287,903.21,902.84,1.046]
[1764788627085,0.64584287,903.2,902.84,1.046]
[1764788627289,0.64584287,903.19,902.84,1.046]
[1764788627489,0.64584287,903.18,902.84,1.046]
[1764788627689,0.64584287,903.17,902.84,1.046]
[1764788627889,0.64584287,903.16,902.84,1.046]
[1764788628090,0.64584287,903.15,902.84,1.046]
[1764788628286,0.64584287,903.14,902.84,1.046]
[1764788628587,0.64584287,903.13,902.84,1.046]
[1764788628790,0.64584287,903.12,902.84,1.046]
[1764788628989,0.64584287,903.11,902.84,1.046]
[1764788629290,0.64584287,903.1,902.84,1.046]
[1764788629487,0.64584287,903.09,902.84,1.046]
[1764788629789,0.64584287,903.08,902.84,1.046]
[1764788629989,0.64584287,903.07,902.84,1.046]
[1764788630285,0.64584287,903.06,902.84,1.046]
[1764788630585,0.64584287,903.05,902.84,1.046]
[1764788630790,0.64584287,903.04,902.59,1.425]
[1764788630988,0.64584287,903.03,902.59,1.425]
[1764788631185,0.64584287,903.02,902.59,1.425]
[1764788631489,0.64584287,903.01,902.59,1.425]
[1764788631789,0.64584287,903.0,902.59,1.425]
[1764788631989,0.64584287,902.99,902.59,1.425]
[1764788632186,0.64584287,902.98,902.59,1.425]
[1764788632390,0.64584287,902.97,902.59,1.425]
[1764788632588,0.64584287,902.96,902.59,1.425]
[1764788632786,0.64584287,902.95,902.59,1.425]
[1764788633087,0.64584287,902.94,902.59,1.425]
[1764788633387,0.64584287,902.93,902.6,1.113]
[1764788633590,0.64584287,902.92,902.6,1.113]
[1764788633792,1.09445929,903.37,902.6,1.113]
[1764788633989,0.64696161,903.36,902.6,1.113]
[1764788634188,0.64696161,903.35,902.6,1.113]
[1764788634386,0.64696161,903.34,902.6,1.113]
[1764788634588,0.64696161,903.33,902.6,1.113]
[1764788634791,0.64696161,903.32,902.6,1.113]
[1764788634987,0.64696161,903.31,902.6,1.113]
[1764788635187,0.64696161,903.3,902.6,1.113]
[1764788635392,0.64696161,903.29,902.6,1.113]
[1764788635592,0.64696161,903.28,902.6,1.113]
[1764788635787,1.09445929,903.33,902.6,1.113]
[1764788635788,0.64696161,903.27,902.6,1.113]
[1764788635990,0.64696161,903.26,902.6,1.113]
[1764788636191,0.64696161,903.25,902.6,1.113]
[1764788636390,0.64696161,903.24,902.6,1.113]
[1764788636589,0.64696161,903.23,902.6,1.113]
[1764788636792,0.64696161,903.22,902.6,1.113]
[1764788636992,0.64696161,903.21,902.6,1.113]
[1764788637193,0.64696161,903.2,902.6,1.113]
[1764788637389,0.64696161,903.19,902.6,1.113]
[1764788637694,0.64696161,903.18,902.6,1.113]
[1764788637889,0.64696161,903.17,902.6,1.113]
[1764788638091,0.64696161,903.16,902.6,1.113]
[1764788638295,0.64696161,903.15,902.6,1.113]
[1764788638495,0.64696161,903.14,902.6,1.113]
[1764788638696,0.64696161,903.13,902.6,1.113]
[1764788638893,0.64696161,903.12,902.6,1.113]
[1764788639092,0.64696161,903.11,902.6,1.113]
[1764788639393,0.64696161,903.1,902.6,1.113]
[1764788639597,0.64696161,903.09,902.6,1.113]
[1764788639797,0.64696161,903.08,902.6,1.113]
[1764788639993,1.09445929,903.31,902.6,1.113]
[1764788639994,0.64696161,903.07,902.6,1.113]
[1764788640195,0.64696161,903.06,902.6,1.113]
[1764788640393,1.64168893,903.47,902.6,1.113]
[1764788640394,0.64696161,903.05,902.6,1.113]
[1764788640593,5.89701138,904.03,902.6,1.113]
[1764788640594,0.64696161,903.04,902.6,1.113]
[1764788640798,0.64696161,903.03,902.6,1.113]
[1764788640998,0.64696161,903.02,902.6,1.113]
[1764788641298,0.64696161,903.01,902.6,1.113]
[1764788641498,0.64696161,903.0,902.6,1.113]
[1764788641698,0.64696161,902.99,902.6,1.113]
[1764788641899,0.64696161,902.98,902.6,1.113]
[1764788642097,0.64696161,902.97,902.6,1.113]
[1764788642301,0.64696161,902.96,902.6,1.113]
[1764788642499,0.64696161,902.95,902.6,1.113]
[1764788642796,0.64696161,902.94,902.6,1.113]
[1764788642995,0.64696161,902.93,902.6,1.113]
[1764788643200,0.64696161,902.92,902.61,1.353]
[1764788643400,0.64696161,902.91,902.61,1.353]
[1764788643595,0.64696161,902.9,902.61,1.353]
[1764788643798,0.64696161,902.89,902.61,1.353]
[1764788644001,0.64696161,902.88,902.61,1.353]
[1764788644201,0.64696161,902.87,902.61,1.353]
[1764788644401,0.64696161,902.86,902.61,1.353]
[1764788644603,1.09445929,903.31,902.61,1.353]
[1764788644801,0.6618428,903.3,902.61,1.353]
[1764788645001,0.6618428,903.29,902.61,1.353]
[1764788645201,0.6618428,903.28,902.61,1.353]
[1764788645501,0.6618428,903.27,902.61,1.353]
[1764788645702,0.6618428,903.26,902.61,1.353]
[1764788645898,0.6618428,903.25,902.61,1.353]
[1764788646098,0.6618428,903.24,902.61,1.353]
[1764788646301,0.6618428,903.23,902.61,1.353]
[1764788646497,0.6618428,903.22,902.61,1.353]
[1764788646696,0.6618428,903.21,902.61,1.353]
[1764788646903,0.6618428,903.2,902.61,1.353]
[1764788647203,0.6618428,903.19,902.61,1.353]
[1764788647399,0.6618428,903.18,902.61,1.353]
[1764788647601,0.6618428,903.17,902.61,1.353]
[1764788647802,0.6618428,903.16,902.61,1.353]
[1764788648102,0.6618428,903.15,902.61,1.353]
[1764788648401,0.6618428,903.14,902.61,1.353]
[1764788648601,0.6618428,903.13,902.61,1.353]
[1764788648807,0.6618428,903.12,902.61,1.353]
[1764788649099,0.6618428,903.11,902.61,1.353]
[1764788649300,0.6618428,903.1,902.61,1.353]
[1764788649504,0.6618428,903.09,902.61,1.353]
[1764788649805,0.6618428,903.08,902.61,1.353]
[1764788650004,0.6618428,903.07,902.61,1.353]
[1764788650206,0.6618428,903.06,902.61,1.353]
[1764788650404,0.6618428,903.05,902.61,1.353]
[1764788650701,0.6618428,903.04,902.61,1.353]
[1764788650900,0.6618428,903.03,902.61,1.353]
[1764788651103,0.6618428,903.02,902.61,1.353]
[1764788651304,0.6618428,903.01,902.61,1.353]
[1764788651502,0.6618428,903.0,902.61,1.353]
[1764788651702,0.6618428,902.99,902.61,1.353]
[1764788652004,0.6618428,902.98,902.61,1.353]
[1764788652305,1.09445929,903.43,902.61,1.353]
[1764788652601,0.66163514,903.42,902.61,1.353]
[1764788652801,0.66163514,903.41,902.61,1.353]
[1764788653105,0.66163514,903.4,902.61,1.353]
[1764788653302,0.66163514,903.39,902.61,1.353]
[1764788653601,0.66163514,903.38,902.61,1.353]
[1764788653807,0.66163514,903.37,902.61,1.353]
[1764788654006,0.66163514,903.36,902.61,1.353]
[1764788654307,0.66163514,903.35,902.61,1.353]
[1764788654602,0.66163514,903.34,902.61,1.353]
[1764788654803,0.66163514,903.33,902.61,1.353]